lending/lending_fUSD_20241124
["ID","MTS","AMOUNT","RATE_DAILY","PERIOD"]
[343218221,1732477057311,-20000.0,0.000456,120]
[343218222,1732477057601,-250.0,0.00045671,120]
[343218223,1732477057639,-2487.51710836,0.00046,120]
[343218224,1732477057685,-500.0,0.00046575,120]
[343218225,1732477057729,-3005.44,0.00046575,120]
[343218226,1732477057759,-3005.44,0.00046575,120]
[343218227,1732477057789,-3005.44,0.00046575,120]
[343218228,1732477057820,-3005.44,0.00046575,120]
[343218229,1732477057850,-3005.44,0.00046575,120]
[343218230,1732477057884,-3005.44,0.00046575,120]
[343218231,1732477057915,-3005.44,0.00046575,120]
[343218232,1732477057946,-3005.44,0.00046575,120]
[343218233,1732477057979,-3005.44,0.00046575,120]
[343218234,1732477058008,-3005.44,0.00046575,120]
[343218235,1732477058037,-3005.44,0.00046575,120]
[343218236,1732477058068,-3005.44,0.00046575,120]
[343218237,1732477058099,-3005.44,0.00046575,120]
[343218238,1732477058137,-2000.0,0.00046575,120]
[343218239,1732477058167,-2000.0,0.00046575,120]
[343218240,1732477058197,-1171.77350327,0.00046575,120]
[343218241,1732477058244,-1000.0,0.00046575,120]
[343218242,1732477058296,-728.88135017,0.00046589,30]
[343218243,1732477058324,-303.91970874,0.00046589,30]
[343218244,1732477058352,-227.25754526,0.00046589,30]
[343218245,1732477058380,-150.0,0.00046603,30]
[343218246,1732477058407,-728.88135017,0.00046629,30]
[343218247,1732477058434,-303.91970874,0.00046629,30]
[343218248,1732477058466,-227.25754526,0.00046629,30]
[343218249,1732477058493,-150.0,0.00046639,30]
[343218250,1732477058521,-150.0,0.00046651,30]
[343218251,1732477058548,-150.0,0.00046661,30]
[343218252,1732477058577,-728.88135017,0.00046669,30]
[343218253,1732477058605,-303.91970874,0.00046669,30]
[343218254,1732477058633,-227.25754526,0.00046669,30]
[343218255,1732477058661,-728.88135017,0.0004671,30]
[343218256,1732477058690,-303.91970874,0.0004671,30]
[343218257,1732477058718,-227.25754526,0.0004671,30]
[343218258,1732477058750,-150.0,0.00046718,30]
[343218259,1732477058778,-150.0,0.00046728,30]
[343218260,1732477058806,-150.0,0.0004674,30]
[343218261,1732477058838,-3005.44,0.00046749,120]
[343218262,1732477058868,-728.88135017,0.0004675,30]
[343218263,1732477058897,-303.91970874,0.0004675,30]
[343218264,1732477058926,-227.25754526,0.0004675,30]
[343218265,1732477058954,-150.0,0.00046776,30]
[343218266,1732477058982,-728.88135017,0.0004679,30]
[343218267,1732477059009,-303.91970874,0.0004679,30]
[343218268,1732477059037,-227.25754526,0.0004679,30]
[343218269,1732477059067,-150.0,0.00046806,30]
[343218270,1732477059093,-372.6,0.00046817,60]
[343218271,1732477059122,-150.0,0.00046822,30]
[343218272,1732477059150,-728.88135017,0.0004683,30]
[343218273,1732477059177,-303.91970874,0.0004683,30]
[343218274,1732477059204,-227.25754526,0.0004683,30]
[343218275,1732477059232,-150.0,0.00046833,30]
[343218276,1732477059260,-150.0,0.00046842,30]
[343218277,1732477059286,-728.88135017,0.0004687,30]
[343218278,1732477059313,-303.91970874,0.0004687,30]
[343218279,1732477059342,-227.25754526,0.0004687,30]
[343218280,1732477059371,-150.0,0.00046884,30]
[343218281,1732477059398,-150.0,0.00046891,30]
[343218282,1732477059428,-728.88135017,0.0004691,30]
[343218283,1732477059460,-303.91970874,0.0004691,30]
[343218284,1732477059489,-227.25754526,0.0004691,30]
[343218285,1732477059519,-150.0,0.0004691,30]
[343218286,1732477059548,-150.0,0.00046944,30]
[343218287,1732477059578,-150.0,0.00046949,30]
[343218288,1732477059606,-728.88135017,0.0004695,30]
[343218289,1732477059636,-303.91970874,0.0004695,30]
[343218290,1732477059666,-227.25754526,0.0004695,30]
[343218291,1732477059695,-150.0,0.00046962,30]
[343218292,1732477059723,-1000.0,0.00046986,120]
[343218293,1732477059752,-3005.44,0.00046989,120]
[343218294,1732477059782,-728.88135017,0.0004699,30]
[343218295,1732477059811,-303.91970874,0.0004699,30]
[343218296,1732477059858,-227.25754526,0.0004699,30]
[343218297,1732477059889,-82246.358045,0.00047,30]
[343218298,1732477059916,-13055.44336132,0.00047,30]
[343218299,1732477059944,-14400.0,0.00047,30]
[343218300,1732477059979,-397.18755355,0.00047,30]
[343218301,1732477060006,-150.0,0.00047006,30]
[343218302,1732477060033,-728.88135017,0.00047031,30]
[343218303,1732477060060,-303.91970874,0.00047031,30]
[343218304,1732477060089,-227.25754526,0.00047031,30]
[343218305,1732477060120,-150.0,0.0004704,30]
[343218306,1732477060149,-150.0,0.00047046,30]
[343218307,1732477060175,-150.0,0.00047064,30]
[343218308,1732477060204,-203.0,0.0004707,30]
[343218309,1732477060232,-225.0,0.0004707,30]
[343218310,1732477060261,-728.88135017,0.00047071,30]
[343218311,1732477060438,-303.91970874,0.00047071,30]
[343218312,1732477060472,-227.25754526,0.00047071,30]
[343218313,1732477060502,-728.88135017,0.00047111,30]
[343218314,1732477060530,-303.91970874,0.00047111,30]
[343218315,1732477060558,-227.25754526,0.00047111,30]
[343218316,1732477060587,-150.0,0.00047118,30]
[343218317,1732477060614,-150.0,0.00047121,30]
[343218318,1732477060641,-150.0,0.00047148,30]
[343218319,1732477060670,-728.88135017,0.00047151,30]
[343218320,1732477060698,-303.91970874,0.00047151,30]
[343218321,1732477060724,-227.25754526,0.00047151,30]
[343218322,1732477060752,-150.0,0.00047179,30]
[343218323,1732477060779,-157.12518742,0.00047189,120]
[343218324,1732477060807,-728.88135017,0.00047191,30]
[343218325,1732477060834,-303.91970874,0.00047191,30]
[343218326,1732477060863,-227.25754526,0.00047191,30]
[343218327,1732477060891,-150.0,0.00047196,30]
[343218328,1732477060918,-728.88135017,0.00047231,30]
[343218329,1732477060945,-303.91970874,0.00047231,30]
[343218330,1732477060971,-227.25754526,0.00047231,30]
[343218331,1732477060998,-150.0,0.00047236,30]
[343218332,1732477061025,-150.0,0.0004725,30]
[343218333,1732477061052,-728.88135017,0.00047271,30]
[343218334,1732477061079,-303.91970874,0.00047271,30]
[343218335,1732477061106,-227.25754526,0.00047271,30]
[343218336,1732477061135,-150.0,0.00047274,30]
[343218337,1732477061162,-3005.44,0.00047287,120]
[343218338,1732477061190,-501.18,0.00047289,120]
[343218339,1732477061217,-500.0,0.00047289,120]
[343218340,1732477061247,-5000.0,0.0004729,120]
[343218341,1732477061273,-150.0,0.00047294,30]
[343218342,1732477061302,-44132.92665856,0.00047297,60]
[343218343,1732477061332,-3005.44,0.00047297,120]
[343218344,1732477061360,-3005.44,0.00047297,120]
[343218345,1732477061397,-3005.44,0.00047298,120]
[343218346,1732477061426,-3005.44,0.00047298,120]
[343218347,1732477061456,-3005.44,0.00047298,120]
[343218348,1732477061482,-3005.44,0.00047298,120]
[343218349,1732477061512,-3005.44,0.00047298,120]
[343218350,1732477061541,-3005.47111287,0.00047298,120]
[343218351,1732477061579,-501.18,0.00047299,120]
[343218352,1732477061607,-501.18,0.00047299,120]
[343218353,1732477061634,-501.18,0.00047299,120]
[343218354,1732477061661,-501.18,0.00047299,120]
[343218355,1732477061689,-501.18,0.00047299,120]
[343218356,1732477061717,-501.18,0.00047299,120]
[343218357,1732477061745,-501.18,0.00047299,120]
[343218358,1732477061774,-501.18,0.00047299,120]
[343218359,1732477061802,-501.18,0.00047299,120]
[343218360,1732477061833,-501.18,0.00047299,120]
[343218361,1732477061865,-150.0,0.00047299,30]
[343218362,1732477061897,-150.0,0.000473,112]
[343218363,1732477061925,-1563.480463,0.000473,97]
[343218364,1732477061954,-728.88135017,0.00047311,30]
[343218365,1732477061984,-303.91970874,0.00047311,30]
[343218366,1732477062013,-227.25754526,0.00047311,30]
[343218367,1732477062041,-728.88135017,0.00047352,30]
[343218368,1732477062071,-303.91970874,0.00047352,30]
[343218369,1732477062098,-227.25754526,0.00047352,30]
[343218370,1732477062125,-150.0,0.00047352,30]
[343218371,1732477062152,-150.0,0.00047352,30]
[343218372,1732477062180,-150.0,0.00047352,30]
[343218373,1732477062208,-150.0,0.00047352,30]
[343218374,1732477062237,-150.0,0.00047352,30]
[343218375,1732477062263,-728.88135017,0.00047392,30]
[343218376,1732477062293,-303.91970874,0.00047392,30]
[343218377,1732477062322,-227.25754526,0.00047392,30]
[343218378,1732477062351,-4079.02078476,0.00047394,30]
[343218379,1732477062379,-501.18,0.00047395,120]
[343218380,1732477062410,-1150.91607306,0.00047396,60]
[343218381,1732477062445,-501.18,0.00047397,120]
[343218382,1732477062473,-501.18,0.00047397,120]
[343218383,1732477062501,-1000.0,0.00047397,120]
[343218384,1732477062530,-501.18,0.00047399,120]
[343218385,1732477062559,-501.18,0.00047399,120]
[343218386,1732477062587,-501.18,0.00047399,120]
[343218387,1732477062615,-501.18,0.00047399,120]
[343218388,1732477062647,-844036.71526601,0.000474,30]
[343218389,1732477062674,-150.0,0.000474,120]
[343218390,1732477062702,-16986.10515163,0.000474,30]
[343218391,1732477062732,-150.0,0.00047409,30]
[343218392,1732477062761,-150.0,0.00047429,30]
[343218393,1732477062789,-728.88135017,0.00047432,30]
[343218394,1732477062817,-303.91970874,0.00047432,30]
[343218395,1732477062847,-227.25754526,0.00047432,30]
[343218396,1732477062875,-251.15,0.00047436,30]
[343218397,1732477062905,-150.0,0.00047453,30]
[343218398,1732477062934,-150.0,0.00047467,30]
[343218399,1732477062964,-728.88135017,0.00047472,30]
[343218400,1732477062994,-303.91970874,0.00047472,30]
[343218401,1732477063023,-227.25754526,0.00047472,30]
[343218402,1732477063053,-501.18,0.00047499,120]
[343218403,1732477063086,-265897.0,0.000475,120]
[343218404,1732477063116,-30455.31005721,0.000475,120]
[343218405,1732477063146,-867.5,0.00047507,30]
[343218406,1732477063176,-150.0,0.00047507,30]
[343218407,1732477063205,-728.88135017,0.00047512,30]
[343218408,1732477063234,-303.91970874,0.00047512,30]
[343218409,1732477063263,-227.25754526,0.00047512,30]
[343218410,1732477063291,-150.0,0.00047524,30]
[343218411,1732477063319,-728.88135017,0.00047552,30]
[343218412,1732477063348,-303.91970874,0.00047552,30]
[343218413,1732477063376,-227.25754526,0.00047552,30]
[343218414,1732477063543,-150.0,0.00047555,30]
[343218415,1732477063574,-150.0,0.00047582,30]
[343218416,1732477063603,-150.0,0.00047585,30]
[343218417,1732477063631,-728.88135017,0.00047592,30]
[343218418,1732477063663,-303.91970874,0.00047592,30]
[343218419,1732477063694,-227.25754526,0.00047592,30]
[343218420,1732477063723,-4414.58251212,0.000476,30]
[343218421,1732477063752,-150.0,0.00047616,30]
[343218422,1732477063781,-225.27,0.00047617,30]
[343218423,1732477063810,-500.0,0.0004763,120]
[343218424,1732477063841,-2000.0,0.0004763,120]
[343218425,1732477063870,-500.0,0.0004763,120]
[343218426,1732477063899,-200.0,0.0004763,120]
[343218427,1732477063928,-728.88135017,0.00047632,30]
[343218428,1732477063957,-303.91970874,0.00047632,30]
[343218429,1732477063986,-227.25754526,0.00047632,30]
[343218430,1732477064012,-150.0,0.00047639,30]
[343218431,1732477064040,-150.0,0.00047657,30]
[343218432,1732477064069,-150.0,0.00047663,30]
[343218433,1732477064096,-169.75698,0.00047665,30]
[343218434,1732477064125,-728.88135017,0.00047673,30]
[343218435,1732477064153,-303.91970874,0.00047673,30]
[343218436,1732477064182,-227.25754526,0.00047673,30]
[343218437,1732477064210,-150.0,0.00047697,30]
[343218438,1732477064238,-501.18,0.00047698,120]
[343218439,1732477064267,-501.18,0.00047698,120]
[343218440,1732477064295,-501.18,0.00047698,120]
[343218441,1732477064324,-501.18,0.00047698,120]
[343218442,1732477064352,-501.23806662,0.00047698,120]
[343218443,1732477064382,-4079.02078476,0.000477,30]
[343218444,1732477064411,-728.88135017,0.00047713,30]
[343218445,1732477064438,-303.91970874,0.00047713,30]
[343218446,1732477064471,-227.25754526,0.00047713,30]
[343218447,1732477064500,-150.0,0.00047741,30]
[343218448,1732477064530,-728.88135017,0.00047753,30]
[343218449,1732477064557,-303.91970874,0.00047753,30]
[343218450,1732477064585,-227.25754526,0.00047753,30]
[343218451,1732477064613,-150.0,0.00047755,30]
[343218452,1732477064641,-150.0,0.00047759,30]
[343218453,1732477064670,-728.88135017,0.00047793,30]
[343218454,1732477064698,-303.91970874,0.00047793,30]
[343218455,1732477064727,-227.25754526,0.00047793,30]
[343218456,1732477064757,-150.0,0.00047793,30]
[343218457,1732477064787,-1000.0,0.00047808,120]
[343218458,1732477064815,-150.0,0.00047812,30]
[343218459,1732477064848,-150.0,0.00047819,30]
[343218460,1732477064880,-728.88135017,0.00047833,30]
[343218461,1732477064911,-303.91970874,0.00047833,30]
[343218462,1732477064942,-227.25754526,0.00047833,30]
[343218463,1732477064973,-150.0,0.00047861,30]
[343218464,1732477065002,-150.0,0.0004787,30]
[343218465,1732477065030,-728.88135017,0.00047873,30]
[343218466,1732477065058,-303.91970874,0.00047873,30]
[343218467,1732477065087,-227.25754526,0.00047873,30]
[343218468,1732477065116,-150.0,0.00047897,30]
[343218469,1732477065145,-728.88135017,0.00047913,30]
[343218470,1732477065172,-303.91970874,0.00047913,30]
[343218471,1732477065201,-227.25754526,0.00047913,30]
[343218472,1732477065228,-150.0,0.00047927,30]
[343218473,1732477065256,-728.88135017,0.00047954,30]
[343218474,1732477065284,-303.91970874,0.00047954,30]
[343218475,1732477065311,-227.25754526,0.00047954,30]
[343218476,1732477065344,-150.0,0.00047963,30]
[343218477,1732477065372,-150.0,0.00047975,30]
[343218478,1732477065401,-150.0,0.00047985,30]
[343218479,1732477065428,-728.88135017,0.00047994,30]
[343218480,1732477065459,-303.91970874,0.00047994,30]
[343218481,1732477065490,-227.25754526,0.00047994,30]
[343218482,1732477065521,-17982.24,0.00048,60]
[343218483,1732477065550,-310.08072003,0.00048,120]
[343218484,1732477065577,-226.58535501,0.00048,90]
[343218485,1732477065608,-203.0,0.00048,30]
[343218486,1732477065638,-225.0,0.00048,30]
[343218487,1732477065667,-1280.0,0.00048,120]
[343218488,1732477065695,-150.0,0.00048014,30]
[343218489,1732477065724,-728.88135017,0.00048034,30]
[343218490,1732477065754,-303.91970874,0.00048034,30]
[343218491,1732477065784,-227.25754526,0.00048034,30]
[343218492,1732477065810,-150.0,0.00048042,30]
[343218493,1732477065839,-150.0,0.00048053,30]
[343218494,1732477065868,-150.0,0.00048065,30]
[343218495,1732477065896,-728.88135017,0.00048074,30]
[343218496,1732477065922,-303.91970874,0.00048074,30]
[343218497,1732477065950,-227.25754526,0.00048074,30]
[343218498,1732477065975,-150.0,0.000481,30]
[343218499,1732477066005,-728.88135017,0.00048114,30]
[343218500,1732477066033,-303.91970874,0.00048114,30]
[343218501,1732477066061,-227.25754526,0.00048114,30]
[343218502,1732477066091,-150.0,0.00048131,30]
[343218503,1732477066120,-728.88135017,0.00048154,30]
[343218504,1732477066150,-303.91970874,0.00048154,30]
[343218505,1732477066178,-227.25754526,0.00048154,30]
[343218506,1732477066206,-150.0,0.00048158,30]
[343218507,1732477066236,-150.0,0.00048166,30]
[343218508,1732477066265,-728.88135017,0.00048194,30]
[343218509,1732477066296,-303.91970874,0.00048194,30]
[343218510,1732477066328,-227.25754526,0.00048194,30]
[343218511,1732477066358,-150.0,0.00048208,30]
[343218512,1732477066388,-150.0,0.00048215,30]
[343218513,1732477066417,-1000.0,0.00048219,120]
[343218514,1732477066452,-728.88135017,0.00048234,30]
[343218515,1732477066483,-303.91970874,0.00048234,30]
[343218516,1732477066516,-227.25754526,0.00048234,30]
[343218517,1732477066548,-150.0,0.00048234,30]
[343218518,1732477066759,-150.0,0.00048268,30]
[343218519,1732477066789,-150.0,0.00048273,30]
[343218520,1732477066818,-728.88135017,0.00048275,30]
[343218521,1732477066849,-303.91970874,0.00048275,30]
[343218522,1732477066877,-227.25754526,0.00048275,30]
[343218523,1732477066907,-150.0,0.00048286,30]
[343218524,1732477066938,-1000.0,0.000483,120]
[343218525,1732477066968,-1005.00187429,0.000483,120]
[343218526,1732477066997,-150.0,0.000483,120]
[343218527,1732477067027,-728.88135017,0.00048315,30]
[343218528,1732477067058,-303.91970874,0.00048315,30]
[343218529,1732477067090,-227.25754526,0.00048315,30]
[343218530,1732477067119,-150.0,0.0004833,30]
[343218531,1732477067149,-728.88135017,0.00048355,30]
[343218532,1732477067178,-303.91970874,0.00048355,30]
[343218533,1732477067208,-227.25754526,0.00048355,30]
[343218534,1732477067237,-500.0,0.00048356,120]
[343218535,1732477067265,-150.0,0.00048364,30]
[343218536,1732477067292,-150.0,0.0004837,30]
[343218537,1732477067322,-150.0,0.00048388,30]
[343218538,1732477067349,-728.88135017,0.00048395,30]
[343218539,1732477067377,-303.91970874,0.00048395,30]
[343218540,1732477067404,-227.25754526,0.00048395,30]
[343218541,1732477067432,-150.0,0.00048411,30]
[343218542,1732477067462,-728.88135017,0.00048435,30]
[343218543,1732477067490,-303.91970874,0.00048435,30]
[343218544,1732477067520,-227.25754526,0.00048435,30]
[343218545,1732477067547,-150.0,0.00048442,30]
[343218546,1732477067575,-150.0,0.00048446,30]
[343218547,1732477067603,-150.0,0.00048456,120]
[343218548,1732477067630,-150.0,0.00048472,30]
[343218549,1732477067658,-728.88135017,0.00048475,30]
[343218550,1732477067686,-303.91970874,0.00048475,30]
[343218551,1732477067714,-227.25754526,0.00048475,30]
[343218552,1732477067741,-1135.0,0.00048484,120]
[343218553,1732477067769,-3000.0,0.00048484,45]
[343218554,1732477067796,-500.0,0.00048493,120]
[343218555,1732477067825,-240.56690106,0.000485,120]
[343218556,1732477067853,-150.0,0.00048503,30]
[343218557,1732477067881,-150.0,0.00048508,120]
[343218558,1732477067909,-728.88135017,0.00048515,30]
[343218559,1732477067939,-303.91970874,0.00048515,30]
[343218560,1732477067969,-227.25754526,0.00048515,30]
[343218561,1732477067997,-150.0,0.0004852,30]
[343218562,1732477068027,-155.06,0.00048525,120]
[343218563,1732477068055,-728.88135017,0.00048555,30]
[343218564,1732477068084,-303.91970874,0.00048555,30]
[343218565,1732477068114,-227.25754526,0.00048555,30]
[343218566,1732477068143,-150.0,0.00048561,30]
[343218567,1732477068171,-150.0,0.00048574,30]
[343218568,1732477068199,-728.88135017,0.00048596,30]
[343218569,1732477068228,-303.91970874,0.00048596,30]
[343218570,1732477068260,-227.25754526,0.00048596,30]
[343218571,1732477068290,-150.0,0.00048598,30]
[343218572,1732477068318,-150.0,0.00048618,30]
[343218573,1732477068345,-500.0,0.0004863,120]
[343218574,1732477068372,-1000.0,0.0004863,120]
[343218575,1732477068400,-728.88135017,0.00048636,30]
[343218576,1732477068428,-303.91970874,0.00048636,30]
[343218577,1732477068461,-227.25754526,0.00048636,30]
[343218578,1732477068490,-728.88135017,0.00048676,30]
[343218579,1732477068519,-303.91970874,0.00048676,30]
[343218580,1732477068549,-227.25754526,0.00048676,30]
[343218581,1732477068576,-150.0,0.00048676,30]
[343218582,1732477068604,-150.0,0.00048676,30]
[343218583,1732477068633,-150.0,0.00048676,30]
[343218584,1732477068660,-150.0,0.00048676,30]
[343218585,1732477068692,-150.0,0.00048676,30]
[343218586,1732477068722,-10665.03076102,0.000487,120]
[343218587,1732477068750,-728.88135017,0.00048716,30]
[343218588,1732477068778,-303.91970874,0.00048716,30]
[343218589,1732477068807,-227.25754526,0.00048716,30]
[343218590,1732477068836,-150.0,0.00048733,30]
[343218591,1732477068865,-150.0,0.00048754,30]
[343218592,1732477068893,-728.88135017,0.00048756,30]
[343218593,1732477068922,-303.91970874,0.00048756,30]
[343218594,1732477068950,-227.25754526,0.00048756,30]
[343218595,1732477068978,-500.0,0.00048767,120]
[343218596,1732477069005,-2000.0,0.00048773,120]
[343218597,1732477069032,-150.0,0.00048778,30]
[343218598,1732477069061,-150.0,0.00048791,30]
[343218599,1732477069091,-728.88135017,0.00048796,30]
[343218600,1732477069120,-303.91970874,0.00048796,30]
[343218601,1732477069149,-227.25754526,0.00048796,30]
[343218602,1732477069178,-150.0,0.00048832,30]
[343218603,1732477069208,-728.88135017,0.00048836,30]
[343218604,1732477069236,-303.91970874,0.00048836,30]
[343218605,1732477069265,-227.25754526,0.00048836,30]
[343218606,1732477069293,-150.0,0.00048849,30]
[343218607,1732477069324,-728.88135017,0.00048876,30]
[343218608,1732477069355,-303.91970874,0.00048876,30]
[343218609,1732477069386,-227.25754526,0.00048876,30]
[343218610,1732477069414,-150.0,0.0004888,30]
[343218611,1732477069444,-500.0,0.00048904,120]
[343218612,1732477069476,-150.0,0.00048906,30]
[343218613,1732477069507,-150.0,0.00048909,30]
[343218614,1732477069536,-728.88135017,0.00048917,30]
[343218615,1732477069563,-303.91970874,0.00048917,30]
[343218616,1732477069595,-227.25754526,0.00048917,30]
[343218617,1732477069627,-150.0,0.00048935,120]
[343218618,1732477069657,-150.0,0.00048939,120]
[343218619,1732477069685,-203.0,0.0004894,30]
[343218620,1732477069714,-225.0,0.0004894,30]
[343218621,1732477069743,-1564.31932187,0.00048956,30]
[343218622,1732477069928,-150.0,0.00048956,120]
[343218623,1732477069956,-728.88135017,0.00048957,30]
[343218624,1732477069986,-303.91970874,0.00048957,30]
[343218625,1732477070016,-227.25754526,0.00048957,30]
[343218626,1732477070045,-150.0,0.00048964,30]
[343218627,1732477070076,-150.0,0.00048969,30]
[343218628,1732477070135,-150.0,0.00048981,30]
[343218629,1732477070196,-150.0,0.00048987,30]
[343218630,1732477070254,-728.88135017,0.00048997,30]
[343218631,1732477070315,-303.91970874,0.00048997,30]
[343218632,1732477070376,-227.25754526,0.00048997,30]
[343218633,1732477070439,-3478.57872026,0.00049,60]
[343218634,1732477070506,-444.68134,0.00049,30]
[343218635,1732477070566,-254469.0,0.00049,120]
[343218636,1732477070630,-1020.0,0.00049,30]
[343218637,1732477070691,-1191.1694993,0.00049,33]
[343218638,1732477070751,-45000.0,0.00049,30]
[343218639,1732477070811,-33856.79125936,0.00049,30]
[343218640,1732477070875,-150.0,0.00049021,30]
[343218641,1732477070932,-728.88135017,0.00049037,30]
[343218642,1732477070991,-303.91970874,0.00049037,30]
[343218643,1732477071051,-227.25754526,0.00049037,30]
[343218644,1732477071107,-2000.0,0.00049041,120]
[343218645,1732477071169,-500.0,0.00049041,120]
[343218646,1732477071223,-1000.0,0.00049041,120]
[343218647,1732477071281,-150.0,0.00049065,30]
[343218648,1732477071338,-728.88135017,0.00049077,30]
[343218649,1732477071399,-303.91970874,0.00049077,30]
[343218650,1732477071456,-227.25754526,0.00049077,30]
[343218651,1732477071520,-150.0,0.00049079,30]
[343218652,1732477071579,-3266.678,0.0004908,90]
[343218653,1732477071636,-150.0,0.00049083,30]
[343218654,1732477071703,-500.0,0.00049084,120]
[343218655,1732477071768,-728.88135017,0.00049117,30]
[343218656,1732477071836,-303.91970874,0.00049117,30]
[343218657,1732477071901,-227.25754526,0.00049117,30]
[343218658,1732477071966,-150.0,0.00049117,30]
[343218659,1732477072030,-150.0,0.00049136,30]
[343218660,1732477072090,-150.0,0.00049143,30]
[343218661,1732477072148,-728.88135017,0.00049157,30]
[343218662,1732477072206,-303.91970874,0.00049157,30]
[343218663,1732477072263,-227.25754526,0.00049157,30]
[343218664,1732477072321,-2000.0,0.00049178,120]
[343218665,1732477072379,-500.0,0.00049178,120]
[343218666,1732477072441,-150.0,0.00049185,30]
[343218667,1732477072501,-150.0,0.00049194,30]
[343218668,1732477072562,-728.88135017,0.00049197,30]
[343218669,1732477072617,-303.91970874,0.00049197,30]
[343218670,1732477072676,-227.25754526,0.00049197,30]
[343218671,1732477072732,-150.0,0.00049205,30]
[343218672,1732477072796,-150.0,0.00049221,30]
[343218673,1732477072855,-728.88135017,0.00049238,30]
[343218674,1732477072915,-303.91970874,0.00049238,30]
[343218675,1732477072981,-227.25754526,0.00049238,30]
[343218676,1732477073040,-150.0,0.00049252,30]
[343218677,1732477073106,-728.88135017,0.00049278,30]
[343218678,1732477073162,-303.91970874,0.00049278,30]
[343218679,1732477073223,-227.25754526,0.00049278,30]
[343218680,1732477073281,-150.0,0.00049285,120]
[343218681,1732477073343,-150.0,0.00049287,30]
[343218682,1732477073402,-150.0,0.00049299,30]
[343218683,1732477073461,-200.0,0.000493,120]
[343218684,1732477073521,-150.0,0.00049309,30]
[343218685,1732477073580,-2000.0,0.00049315,120]
[343218686,1732477073643,-245.48880804,0.00049315,120]
[343218687,1732477073954,239.59795617,0.0004,120]
[343218688,1732477284441,164.68,0.00041096,2]
[343218690,1732477327004,796.00547467,0.00038,120]
[343218691,1732477335380,796.00547467,0.0004,120]
[343218692,1732477383472,5000.0,0.00042,120]
[343218694,1732477401603,25968.0,0.00041,120]
[343218695,1732477501480,50000.0,0.00042,120]
[343218696,1732477646925,37539.0,0.00042,120]
[343218697,1732477685301,5000.0,0.00042,120]
[343218741,1732477838602,-479.19591235,0.00043,120]
[343218742,1732477838612,-1592.01094935,0.00043,120]
[343218743,1732477838621,-336.68,0.00043529,2]
[343218744,1732477838630,-1820.0,0.00045,3]
[343218745,1732477838640,-1000.0,0.00045448,2]
[343218746,1732477838651,-1000.0,0.00045448,2]
[343218747,1732477838664,-250.0,0.00045452,120]
[343218748,1732477838674,-151.47,0.00045596,120]
[343218749,1732477838684,-2088.0,0.00045648,30]
[343218750,1732477838695,-336.68,0.00045793,2]
[343218751,1732477838705,-158.453,0.00045899,75]
[343218752,1732477838714,-3750.2918,0.00045899,2]
[343218753,1732477838725,-28480.15454877,0.0004599,4]
[343218755,1732477840424,-3530.95511205,0.0004599,4]
[343218756,1732477840436,-829.61000003,0.0004599,4]
[343218757,1732477840447,-393.9408141,0.0004599,4]
[343218758,1732477840460,-1147.13060806,0.0004599,4]
[343218762,1732477844898,-3729.29182388,0.0004599,4]
[343218787,1732477846490,-502.78733818,0.0004599,4]
[343218788,1732477846501,-511.925,0.0004599,4]
[343218789,1732477887965,7982.35011715,0.00042,2]
[343218790,1732478046219,155.88,0.00041096,2]
[343218792,1732478427769,434.0,0.00041,2]
[343218793,1732478428601,391.0,0.00041,2]
[343218794,1732478673627,2000.0,9e-05,2]